fUST/lending_fUST_20260324
["ID","MTS","AMOUNT","RATE_DAILY","PERIOD"]
[408816301,1774291843178,-264.881901,0.0002,2]
[408816302,1774291843187,-264.881901,0.0002,2]
[408816303,1774291843196,-264.881901,0.0002,2]
[408816304,1774291843205,-264.881901,0.0002,2]
[408816305,1774291843214,-264.881901,0.0002,2]
[408816306,1774291843225,-264.881901,0.0002,2]
[408816307,1774291843233,-264.881907,0.0002,2]
[408816308,1774291843242,-215.607076,0.0002,2]
[408816309,1774291843251,-215.607076,0.0002,2]
[408816310,1774291843260,-215.607076,0.0002,2]
[408816311,1774291843269,-215.607076,0.0002,2]
[408816312,1774291843278,-215.607076,0.0002,2]
[408816313,1774291843287,-215.607076,0.0002,2]
[408816314,1774291843296,-215.607076,0.0002,2]
[408816315,1774291843305,-151.0,0.0002,2]
[408816316,1774291843314,-215.60708,0.0002,2]
[408816317,1774291843324,-151.0,0.0002,2]
[408816318,1774291843334,-151.0,0.0002,2]
[408816319,1774291843343,-151.0,0.0002,2]
[408816320,1774291843351,-276.173058,0.0002,2]
[408816321,1774291843360,-1282.82758,0.0002,2]
[408816322,1774291843370,-1282.82758,0.0002,2]
[408816323,1774291843379,-1282.82758,0.0002,2]
[408816324,1774291843388,-1282.82758,0.0002,2]
[408816325,1774291843397,-1282.82758,0.0002,2]
[408816326,1774291843406,-1282.82758,0.0002,2]
[408816327,1774291843415,-1282.82758,0.0002,2]
[408816328,1774291843425,-1282.827572,0.0002,2]
[408816329,1774291843433,-151.0,0.0002,2]
[408816330,1774291843442,-151.0,0.0002,2]
[408816331,1774291843452,-154.901324,0.0002,2]
[408816332,1774291843462,-154.901324,0.0002,2]
[408816333,1774291843471,-151.0,0.0002,2]
[408816334,1774291843480,-151.0,0.0002,2]
[408816335,1774291843489,-154.901324,0.0002,2]
[408816336,1774291843498,-151.0,0.0002,2]
[408816337,1774291843507,-154.901324,0.0002,2]
[408816338,1774291843516,-151.0,0.0002,2]
[408816339,1774291843525,-154.901324,0.0002,2]
[408816340,1774291843534,-154.901324,0.0002,2]
[408816341,1774291843543,-154.901324,0.0002,2]
[408816342,1774291843553,-154.901324,0.0002,2]
[408816343,1774291843563,-229.432438,0.0002,2]
[408816344,1774291843572,-229.432438,0.0002,2]
[408816345,1774291843581,-229.432438,0.0002,2]
[408816346,1774291843591,-229.432438,0.0002,2]
[408816347,1774291843600,-229.432438,0.0002,2]
[408816348,1774291843613,-229.432438,0.0002,2]
[408816349,1774291843622,-229.432438,0.0002,2]
[408816350,1774291843631,-229.432438,0.0002,2]
[408816351,1774291843643,-151.0,0.0002,2]
[408816352,1774291843652,-151.0,0.0002,2]
[408816353,1774291843661,-2000.0,0.0002,7]
[408816354,1774291843670,-545.34209,0.0002,2]
[408816355,1774291843679,-545.34209,0.0002,2]
[408816356,1774291843689,-545.34209,0.0002,2]
[408816357,1774291843698,-545.34209,0.0002,2]
[408816358,1774291843708,-545.34209,0.0002,2]
[408816359,1774291843716,-545.34209,0.0002,2]
[408816360,1774291843725,-545.34209,0.0002,2]
[408816361,1774291843736,-545.34209,0.0002,2]
[408816362,1774291843745,-168.3888056,0.0002003,2]
[408816363,1774291843754,-587.0,0.00020092,2]
[408816364,1774291843763,-302.541653,0.0002013,2]
[408816365,1774291843772,-302.541653,0.0002013,2]
[408816366,1774291843781,-302.541653,0.0002013,2]
[408816367,1774291843790,-302.54165,0.0002013,2]
[408816368,1774291843799,-355.305436,0.0002013,2]
[408816369,1774291843809,-355.305436,0.0002013,2]
[408816370,1774291843819,-355.305436,0.0002013,2]
[408816371,1774291843830,-355.305435,0.0002013,2]
[408816372,1774291843842,-773.91931,0.0002013,2]
[408816373,1774291843852,-773.91931,0.0002013,2]
[408816374,1774291843861,-773.91931,0.0002013,2]
[408816375,1774291843873,-773.919314,0.0002013,2]
[408816376,1774291843883,-154.901324,0.0002013,2]
[408816377,1774291843894,-154.901324,0.0002013,2]
[408816378,1774291843903,-154.901324,0.0002013,2]
[408816379,1774291843913,-154.901324,0.0002013,2]
[408816380,1774291843922,-229.432438,0.0002013,2]
[408816381,1774291843931,-229.432438,0.0002013,2]
[408816382,1774291843940,-229.432438,0.0002013,2]
[408816383,1774291843951,-229.432434,0.0002013,2]
[408816384,1774291843960,-151.0,0.0002013,2]
[408816385,1774291843969,-545.34209,0.0002013,2]
[408816386,1774291843978,-545.34209,0.0002013,2]
[408816387,1774291843987,-545.34209,0.0002013,2]
[408816388,1774291843996,-545.342082,0.0002013,2]
[408816389,1774291844005,-1052.63,0.00020278,2]
[408816390,1774291844014,-2000.0,0.00020316,2]
[408816391,1774291844023,-627.73931848,0.00020316,2]
[408816392,1774291844033,-2000.0,0.00020316,2]
[408816393,1774291844042,-496.06154105,0.00020316,2]
[408816394,1774291844051,-500.0,0.00020316,2]
[408816395,1774291844060,-568.329846,0.0002039,2]
[408816396,1774291844070,-568.329846,0.0002039,2]
[408816397,1774291844079,-568.329846,0.0002039,2]
[408816398,1774291844088,-568.329839,0.0002039,2]
[408816399,1774291844096,-600.0,0.00020399,2]
[408816400,1774291844106,-1000.0,0.00020521,2]
[408816401,1774291844115,-1000.0,0.00020521,2]
[408816402,1774291844123,-1000.0,0.00020521,2]
[408816403,1774291844132,-1000.0,0.00020521,2]
[408816404,1774291844142,-1000.0,0.00020521,2]
[408816405,1774291844151,-1000.0,0.00020521,2]
[408816406,1774291844161,-1052.63,0.00020556,2]
[408816407,1774291844174,-3991.85367813,0.0002062,2]
[408816408,1774291844184,-1052.63,0.00020833,2]
[408816409,1774291844195,-500.0,0.00020864,2]
[408816410,1774291844205,-500.0,0.00020864,2]
[408816411,1774291844215,-266.484,0.00020896,2]
[408816412,1774291844225,-1683.7,0.000209,2]
[408816413,1774291844234,-9002.30261384,0.00021,5]
[408816414,1774291844245,-6000.0,0.00021,2]
[408816415,1774291844255,-50000.0,0.00021,2]
[408816416,1774291844265,-427.2315,0.00021,5]
[408816417,1774291844275,-427.2515,0.00021,5]
[408816418,1774291844284,-1500.99396043,0.00021068,2]
[408816419,1774291844294,-1501.90252193,0.00021068,2]
[408816420,1774291844303,-1500.0,0.00021068,2]
[408816421,1774291844312,-1500.0,0.00021068,2]
[408816422,1774291844321,-1500.0,0.00021068,2]
[408816423,1774291844331,-1500.0,0.00021068,2]
[408816424,1774291844340,-1052.63,0.00021111,2]
[408816425,1774291844350,-7471.3591498,0.00021223,2]
[408816426,1774291844360,-1052.63,0.00021389,2]
[408816427,1774291844369,-323.07870042,0.00021399,2]
[408816428,1774291844379,-12953.13792875,0.000215,2]
[408816429,1774291844389,-788.0,0.000215,2]
[408816430,1774291844399,-155.0,0.00021559,2]
[408816431,1774291844408,-2000.0,0.00021616,2]
[408816432,1774291844417,-1500.0,0.00021616,2]
[408816433,1774291844432,-2000.0,0.00021616,2]
[408816434,1774291844441,-2000.0,0.00021616,2]
[408816435,1774291844451,-1052.63,0.00021667,2]
[408816436,1774291844461,-1667.0855636,0.00021756,2]
[408816437,1774291844470,-1683.7,0.000219,2]
[408816438,1774291844480,-500.0,0.00021917,4]
[408816439,1774291844490,-500.0,0.00021917,4]
[408816440,1774291844499,-203.04183257,0.00021917,4]
[408816441,1774291844508,-2083.33,0.00021917,4]
[408816442,1774291844518,-500.0,0.00021917,4]
[408816443,1774291844528,-500.0,0.00021917,4]
[408816444,1774291844538,-1052.63,0.00021944,2]
[408816445,1774291844549,-823.0,0.00021949,2]
[408816446,1774291844558,-215.0,0.00022,2]
[408816447,1774291844567,-8507.0642727,0.00022122,2]
[408816448,1774291844577,-2042.66850151,0.00022164,2]
[408816449,1774291844586,-2500.0,0.00022164,2]
[408816450,1774291844596,-500.0,0.00022191,4]
[408816451,1774291844608,-500.0,0.00022191,4]
[408816452,1774291844617,-2083.33,0.00022191,4]
[408816453,1774291844626,-500.0,0.00022191,4]
[408816454,1774291844636,-500.0,0.00022191,4]
[408816455,1774291844648,-1052.63,0.00022222,2]
[408816456,1774291844658,-5000.0,0.00022284,2]
[408816457,1774291844667,-720.0,0.00022439,10]
[408816458,1774291844679,-500.0,0.00022465,4]
[408816459,1774291844688,-500.0,0.00022465,4]
[408816460,1774291844698,-2083.33,0.00022465,4]
[408816461,1774291844707,-322.94858633,0.00022465,4]
[408816462,1774291844716,-400.068495,0.00022465,4]
[408816463,1774291844725,-1052.63,0.000225,2]
[408816464,1774291844735,-1000.0,0.00022712,2]
[408816465,1774291844746,-500.0,0.00022739,4]
[408816466,1774291844756,-500.0,0.00022739,4]
[408816467,1774291844765,-2083.33,0.00022739,4]
[408816468,1774291844774,-3991.85367813,0.00022741,2]
[408816469,1774291844784,-1052.63,0.00022778,2]
[408816470,1774291844793,-1683.7,0.000229,2]
[408816471,1774291844802,-2184.0,0.00022959,2]
[408816472,1774291844812,-1399.0,0.00022959,2]
[408816473,1774291844821,-641.0,0.00022959,2]
[408816474,1774291844831,-438.0,0.00022959,2]
[408816475,1774291844841,-735.0,0.00022959,2]
[408816476,1774291844851,-270.83333333,0.00023,2]
[408816477,1774291844861,-215.0,0.00023,2]
[408816478,1774291844871,-500.0,0.00023013,4]
[408816479,1774291844881,-500.0,0.00023013,4]
[408816480,1774291844892,-2083.33,0.00023013,4]
[408816481,1774291844902,-1052.63,0.00023056,2]
[408816482,1774291844912,-552.84204813,0.00023287,4]
[408816483,1774291844921,-500.0,0.00023287,4]
[408816484,1774291844930,-2083.33,0.00023287,4]
[408816485,1774291844939,-1052.63,0.00023333,2]
[408816486,1774291844949,-5414.73459616,0.000235,2]
[408816487,1774291844959,-500.0,0.00023561,4]
[408816488,1774291844970,-2083.33,0.00023561,4]
[408816489,1774291844979,-818.43792983,0.00023577,53]
[408816490,1774291844988,-1052.63,0.00023611,2]
[408816491,1774291844999,-3099.0,0.00023773,10]
[408816492,1774291845008,-893.0,0.00023773,10]
[408816493,1774291845019,-5414.73459616,0.000238,2]
[408816494,1774291845030,-500.0,0.00023835,4]
[408816495,1774291845040,-2083.33,0.00023835,4]
[408816496,1774291845049,-1052.63,0.00023889,2]
[408816497,1774291845059,-1683.7,0.000239,2]
[408816498,1774291845068,-1152.0,0.00023977,2]
[408816499,1774291845078,-5414.73459616,0.00024,2]
[408816500,1774291845088,-215.0,0.00024,2]
[408816501,1774291845097,-179.9640072,0.00024105,2]
[408816502,1774291845106,-500.0,0.00024109,4]
[408816503,1774291845117,-2083.33,0.00024109,4]
[408816504,1774291845127,-5000.0,0.00024141,2]
[408816505,1774291845136,-1052.63,0.00024167,2]
[408816506,1774291845146,-5414.73459616,0.000242,2]
[408816507,1774291845156,-155.0,0.00024218,3]
[408816508,1774291845165,-155.0,0.00024218,3]
[408816509,1774291845176,-155.0,0.00024218,3]
[408816510,1774291845185,-690.0,0.00024218,3]
[408816511,1774291845194,-166.0,0.00024218,3]
[408816512,1774291845203,-690.0,0.00024218,3]
[408816513,1774291845214,-155.0,0.00024218,3]
[408816514,1774291845224,-165.0,0.00024218,3]
[408816515,1774291845234,-646.0,0.00024218,3]
[408816516,1774291845243,-690.0,0.00024218,3]
[408816517,1774291845253,-339.0,0.00024218,3]
[408816518,1774291845262,-165.0,0.00024218,3]
[408816519,1774291845273,-155.0,0.00024218,3]
[408816520,1774291845283,-158.63796892,0.00024218,3]
[408816521,1774291845293,-339.0,0.00024218,3]
[408816522,1774291845302,-206.57854812,0.00024218,3]
[408816523,1774291845311,-155.0,0.00024218,3]
[408816524,1774291845320,-690.0,0.00024218,3]
[408816525,1774291845329,-646.0,0.00024218,3]
[408816526,1774291845339,-339.0,0.00024218,3]
[408816527,1774291845348,-155.0,0.00024218,3]
[408816528,1774291845357,-646.0,0.00024218,3]
[408816529,1774291845367,-690.0,0.00024218,3]
[408816530,1774291845376,-339.0,0.00024218,3]
[408816531,1774291845385,-155.0,0.00024218,3]
[408816532,1774291845395,-646.0,0.00024218,3]
[408816533,1774291845404,-339.0,0.00024218,3]
[408816534,1774291845413,-690.0,0.00024218,3]
[408816535,1774291845424,-153.54905084,0.00024218,3]
[408816536,1774291845433,-646.0,0.00024218,3]
[408816537,1774291845442,-339.0,0.00024218,3]
[408816538,1774291845451,-690.0,0.00024218,3]
[408816539,1774291845460,-646.0,0.00024218,3]
[408816545,1774291845604,-339.0,0.00024218,3]
[408816546,1774291845616,-690.0,0.00024218,3]
[408816547,1774291845626,-646.0,0.00024218,3]
[408816548,1774291845637,-339.0,0.00024218,3]
[408816549,1774291845647,-690.0,0.00024218,3]
[408816550,1774291845656,-646.0,0.00024218,3]
[408816551,1774291845667,-339.0,0.00024218,3]
[408816552,1774291845679,-646.0,0.00024218,3]
[408816553,1774291845689,-339.0,0.00024218,3]
[408816554,1774291845699,-690.0,0.00024218,3]
[408816555,1774291845709,-690.0,0.00024218,3]
[408816556,1774291845720,-339.0,0.00024218,3]
[408816557,1774291845730,-646.0,0.00024218,3]
[408816558,1774291845739,-339.0,0.00024218,3]
[408816559,1774291845749,-690.0,0.00024218,3]
[408816560,1774291845758,-646.0,0.00024218,3]
[408816561,1774291845768,-339.0,0.00024218,3]
[408816562,1774291845778,-646.0,0.00024218,3]
[408816563,1774291845787,-690.0,0.00024218,3]
[408816564,1774291845796,-646.0,0.00024218,3]
[408816566,1774291845806,-690.0,0.00024218,3]
[408816568,1774291845815,-339.0,0.00024218,3]
[408816569,1774291845824,-646.0,0.00024218,3]
[408816570,1774291845834,-690.0,0.00024218,3]
[408816571,1774291845843,-339.0,0.00024218,3]
[408816572,1774291845853,-690.0,0.00024218,3]
[408816574,1774291845862,-646.0,0.00024218,3]
[408816575,1774291845872,-339.0,0.00024218,3]
[408816576,1774291845881,-690.0,0.00024218,3]
[408816577,1774291845890,-646.0,0.00024218,3]
[408816578,1774291845900,-339.0,0.00024218,3]
[408816580,1774291845909,-690.0,0.00024218,3]
[408816581,1774291845918,-339.0,0.00024218,3]
[408816583,1774291845932,-646.0,0.00024218,3]
[408816584,1774291845941,-690.0,0.00024218,3]
[408816585,1774291845951,-646.0,0.00024218,3]
[408816586,1774291845961,-339.0,0.00024218,3]
[408816587,1774291845970,-690.0,0.00024218,3]
[408816588,1774291845979,-339.0,0.00024218,3]
[408816589,1774291845989,-646.0,0.00024218,3]
[408816590,1774291845998,-690.0,0.00024218,3]
[408816591,1774291846008,-646.0,0.00024218,3]
[408816592,1774291846018,-339.0,0.00024218,3]
[408816593,1774291846027,-690.0,0.00024218,3]
[408816594,1774291846037,-339.0,0.00024218,3]
[408816595,1774291846046,-646.0,0.00024218,3]
[408816596,1774291846056,-690.0,0.00024218,3]
[408816597,1774291846066,-339.0,0.00024218,3]
[408816598,1774291846077,-646.0,0.00024218,3]
[408816599,1774291846087,-690.0,0.00024218,3]
[408816600,1774291846097,-339.0,0.00024218,3]
[408816601,1774291846107,-646.0,0.00024218,3]
[408816602,1774291846116,-690.0,0.00024218,3]
[408816603,1774291846126,-339.0,0.00024218,3]
[408816604,1774291846135,-339.0,0.00024218,3]
[408816605,1774291846145,-690.0,0.00024218,3]
[408816606,1774291846154,-339.0,0.00024218,3]
[408816607,1774291846164,-690.0,0.00024218,3]
[408816608,1774291846174,-339.0,0.00024218,3]
[408816609,1774291846183,-690.0,0.00024218,3]
[408816610,1774291846193,-339.0,0.00024218,3]
[408816611,1774291846203,-690.0,0.00024218,3]
[408816612,1774291846212,-339.0,0.00024218,3]
[408816613,1774291846221,-690.0,0.00024218,3]
[408816614,1774291846230,-339.0,0.00024218,3]
[408816615,1774291846239,-339.0,0.00024218,3]
[408816616,1774291846248,-690.0,0.00024218,3]
[408816617,1774291846258,-339.0,0.00024218,3]
[408816618,1774291846267,-741.45924367,0.00024218,3]
[408816619,1774291846276,-339.0,0.00024218,3]
[408816620,1774291846286,-339.0,0.00024218,3]
[408816621,1774291846295,-339.0,0.00024218,3]
[408816622,1774291846304,-339.0,0.00024218,3]
[408816623,1774291846313,-339.0,0.00024218,3]
[408816624,1774291846323,-339.0,0.00024218,3]
[408816625,1774291846332,-339.0,0.00024218,3]
[408816626,1774291846341,-339.0,0.00024218,3]
[408816627,1774291846350,-339.0,0.00024218,3]
[408816628,1774291846359,-339.0,0.00024218,3]
[408816629,1774291846368,-646.0,0.00024218,3]
[408816630,1774291846378,-646.0,0.00024218,3]
[408816631,1774291846387,-646.0,0.00024218,3]
[408816632,1774291846396,-646.0,0.00024218,3]
[408816633,1774291846406,-307.86255352,0.00024218,3]
[408816634,1774291846415,-339.0,0.00024218,3]
[408816635,1774291846425,-339.0,0.00024218,3]
[408816636,1774291846435,-339.0,0.00024218,3]
[408816637,1774291846444,-339.0,0.00024218,3]
[408816638,1774291846454,-339.0,0.00024218,3]
[408816639,1774291846463,-339.0,0.00024218,3]
[408816640,1774291846471,-339.0,0.00024218,3]
[408816641,1774291846480,-339.0,0.00024218,3]
[408816642,1774291846489,-339.0,0.00024218,3]
[408816643,1774291846499,-339.0,0.00024218,3]
[408816644,1774291846508,-339.0,0.00024218,3]
[408816645,1774291846517,-339.0,0.00024218,3]
[408816646,1774291846526,-339.0,0.00024218,3]
[408816647,1774291846535,-339.0,0.00024218,3]
[408816648,1774291846544,-339.0,0.00024218,3]
[408816649,1774291846553,-339.0,0.00024218,3]
[408816650,1774291846562,-339.0,0.00024218,3]
[408816651,1774291846571,-339.0,0.00024218,3]
[408816652,1774291846580,-339.0,0.00024218,3]
[408816653,1774291846589,-339.0,0.00024218,3]
[408816654,1774291846599,-339.0,0.00024218,3]
[408816655,1774291846611,-339.0,0.00024218,3]
[408816656,1774291846620,-339.0,0.00024218,3]
[408816657,1774291846629,-339.0,0.00024218,3]
[408816658,1774291846639,-339.0,0.00024218,3]
[408816659,1774291846649,-339.0,0.00024218,3]
[408816660,1774291846658,-339.0,0.00024218,3]
[408816661,1774291846667,-339.0,0.00024218,3]
[408816662,1774291846678,-339.0,0.00024218,3]
[408816663,1774291846688,-339.0,0.00024218,3]
[408816664,1774291846697,-415.82721278,0.00024218,3]
[408816665,1774291846706,-178.0,0.00024218,3]
[408816666,1774291846715,-178.0,0.00024218,3]
[408816667,1774291846725,-180.37116591,0.00024218,3]
[408816668,1774291846735,-300.16898864,0.00024218,3]
[408816669,1774291846744,-270.83333333,0.000243,3]
[408816670,1774291846753,-8507.0642727,0.00024344,2]
[408816671,1774291846763,-500.0,0.00024383,4]
[408816672,1774291846772,-2083.33,0.00024383,4]
[408816673,1774291846782,-1052.63,0.00024444,2]
[408816674,1774291846794,-5414.73459616,0.000245,2]
[408816675,1774291846804,-17791.88854622,0.0002465,2]
[408816676,1774291846883,-121112.04852752,0.0002465,2]
[408816677,1774291847087,-150.0,0.00018487,2]
[408816678,1774291847096,-150.0,0.00018487,2]
[408816679,1774291847105,-150.0,0.00018487,2]
[408816680,1774291847115,-152.17684283,0.00018487,2]
[408816681,1774291847124,-1727.00824585,0.000194,2]
[408816682,1774291847136,-66.46654815,0.000194,2]
[408816683,1774291847145,-346.81456751,0.000194,2]
[408816684,1774292480870,-290.96046461,9.417e-05,2]
[408816685,1774292480893,-290.96046461,9.512e-05,2]
[408816686,1774292480904,-4195.80244381,9.512e-05,2]
[408816776,1774293032284,-4241.16229883,9.23e-05,2]
[408816777,1774293032296,-758.83770117,9.23e-05,2]
[408816778,1774293032306,-549.0,9.23e-05,2]
[408816779,1774293032315,-166.8623412,9.608e-05,2]
[408816780,1774293032324,-1000.0,0.00013699,2]
[408816781,1774293032333,-1000.0,0.00018951,2]
[408816782,1774293032342,-300.0,0.0001915,2]
[408816783,1774293032352,-300.0,0.0001915,2]
[408816784,1774293032361,-735.0,0.00019151,2]
[408816785,1774293032371,-187.905,0.00019151,2]
[408816786,1774293032380,-537.6845,0.00019976,2]
[408816787,1774293032389,-2150.738,0.00019976,2]
[408816788,1774293032398,-1052.63,0.0002,2]
[408816789,1774293032408,-151.64512401,0.0002,2]
[408816790,1774293032417,-557.5788265,0.00020031,2]
[408816791,1774293032427,-578.20924308,0.00020086,2]
[408816792,1774293032436,-599.60298507,0.00020141,2]
[408816793,1774293032445,-621.78829552,0.00020196,2]
[408816794,1774293032454,-644.79446246,0.00020251,2]
[408816795,1774293032465,-668.65185757,0.00020306,2]
[408816796,1774293032475,-693.3919763,0.00020361,2]
[408816797,1774293032484,-600.0,0.00020399,2]
[408816798,1774293032493,-719.04747942,0.00020416,2]
[408816799,1774293032502,-745.65223616,0.00020471,2]
[408816800,1774293032515,-151.0,0.00020524,2]
[408816801,1774293032528,-151.0,0.00020524,2]
[408816802,1774293032539,-151.0,0.00020524,2]
[408816803,1774293032548,-151.0,0.00020524,2]
[408816804,1774293032557,-151.0,0.00020524,2]
[408816805,1774293032567,-151.0,0.00020524,2]
[408816806,1774293032576,-151.0,0.00020524,2]
[408816807,1774293032586,-151.0,0.00020524,2]
[408816808,1774293032595,-151.0,0.00020524,2]
[408816809,1774293032605,-151.0,0.00020524,2]
[408816810,1774293032614,-151.0,0.00020524,2]
[408816811,1774293032623,-151.0,0.00020524,2]
[408816812,1774293032632,-151.0,0.00020524,2]
[408816813,1774293032649,-151.0,0.00020524,2]
[408816814,1774293032661,-151.0,0.00020524,2]
[408816815,1774293032672,-151.0,0.00020524,2]
[408816816,1774293032683,-151.0,0.00020524,2]
[408816817,1774293032695,-151.0,0.00020524,2]
[408816818,1774293032707,-773.2413689,0.00020526,2]
[408816819,1774293032718,-208.525,0.00020536,2]
[408816820,1774293032729,-229.909,0.00020536,2]
[408816821,1774293032741,-1389.0,0.00020536,2]
[408816822,1774293032752,-641.0,0.00020536,2]
[408816823,1774293032762,-2192.0,0.00020536,2]
[408816824,1774293032772,-2980.15840707,0.00020558,2]
[408816825,1774293032781,-801.85129955,0.00020581,2]
[408816826,1774293032791,-1712.1720292,0.00020591,2]
[408816827,1774293032800,-831.51979763,0.00020636,2]
[408816829,1774293032811,-644.25,0.00020658,10]
[408816831,1774293032821,-5000.0,0.00020666,2]
[408816833,1774293032832,-197.73893769,0.00020667,2]
[408816835,1774293032843,-49369.05252102,0.00020668,2]
[408816837,1774293032857,-490.57899851,0.00020668,2]
[408816840,1774293032871,-5008.0849452,0.00020668,2]
[408816913,1774293040774,-1468.4,0.00020461,2]
[408816914,1774293040787,-604.0,0.00020461,2]
[408816915,1774293040801,-333.28414084,0.00020461,2]
[408816934,1774293044715,-250.820863,0.00020267,2]
[408816935,1774293044820,-187.179137,0.00020267,2]
[408816937,1774293044832,-2594.31585916,0.00020461,2]
[408816939,1774293044842,-166.66666666,0.00020573,2]
[408816941,1774293044851,-5115.46125962,0.00020668,2]
[408816965,1774294232387,-612.34176733,0.00011901,2]
[408816966,1774294232397,-241.28223267,0.00012021,2]
[408816967,1774294232408,-4091.09591491,0.00012021,2]
[408816968,1774294232419,-667.62185242,0.00012021,2]
[408816969,1774294232428,-160.720464,0.00012142,2]
[408816970,1774294232437,-591.0,0.00012142,2]
[408816971,1774294232446,-1000.0,0.00013699,2]
[408816972,1774294232456,-914.075452,0.00017863,2]
[408816973,1774294232465,-224.09067016,0.00018523,2]
[408816974,1774294232474,-295.35605,0.00019271,2]
[408816975,1774294232483,-300.0,0.00019899,2]
[408816976,1774294232493,-2607.63860616,0.000199,2]
[408816977,1774294232502,-500.0,0.00019973,2]
[408816978,1774294232511,-491.47710023,0.00019973,2]
[408816979,1774294232520,-5000.0,0.00019999,2]
[408816980,1774294232529,-1715.9334595,0.0002,2]
[408816981,1774294232540,-2000.0,0.0002,2]
[408817005,1774294238682,-19184.34066988,0.0002,2]
[408817029,1774294246726,-5000.0,0.00019999,2]
[408817030,1774294246736,-6826.30210355,0.0002,2]
[408817031,1774294246783,-158419.29935768,0.0002,2]
[408817067,1774295431546,-283.624,0.00012195,2]
[408817069,1774295431558,-284.79628156,0.00012195,2]
[408817084,1774295437687,-1431.06934877,0.00012195,2]
[408817085,1774295437796,-431.87462275,0.00012195,2]
[408817401,1774295442855,-2568.63574692,0.00012195,2]
[408817402,1774295442864,-5374.52773707,0.00012218,2]
[408817403,1774295442873,-5000.0,0.00012318,2]
[408817404,1774295442883,-594.0,0.00012318,2]
[408817405,1774295442892,-300.0,0.00012466,2]
[408817406,1774295442901,-420.0,0.00013678,2]
[408817407,1774295442911,-33.96102528,0.00013699,2]
[408817685,1774295445706,-610.66231225,0.00013562,2]
[408818071,1774296631692,-1580.26245559,0.00010046,2]
[408818072,1774296631703,-3093.05945852,0.00010046,2]
[408818073,1774296631714,-326.67808589,0.00010046,2]
[408818074,1774296631723,-417.04190287,0.00010147,2]
[408818075,1774296631732,-562.0,0.00010147,2]
[408818076,1774296631741,-5000.0,0.0001025,2]
[408818077,1774296631750,-1200.0,0.00010353,2]
[408818078,1774296631759,-300.0,0.00010458,2]
[408818079,1774296631768,-300.0,0.00010458,2]
[408818081,1774296631777,-1000.0,0.00011,2]
[408818083,1774296631786,-1000.0,0.00011,2]
[408818084,1774296631795,-1000.0,0.00011,2]
[408818085,1774296631803,-1000.0,0.00011,2]
[408818086,1774296631812,-1000.0,0.00011,2]
[408818087,1774296631821,-420.0,0.00011498,2]
[408818089,1774296631830,-587.0,0.00012642,2]
[408818091,1774296631840,-214.0,0.000135,2]
[408818092,1774296631850,-1000.0,0.00013699,2]
[408818093,1774296631859,-966.03897472,0.00013699,2]
[408818094,1774296631868,-200.0,0.00013699,2]
[408818095,1774296631878,-1034.2216226,0.00013856,2]
[408818096,1774296631887,-823.0,0.000139,2]
[408818097,1774296631896,-1218.0817623,0.00014803,2]
[408818098,1774296631906,-1152.0,0.00015283,2]
[408818099,1774296631916,-1240.687368,0.00015713,2]